[Event "2nd Mix Bassano 2021"]
[Site "Bassano del Grappa"]
[Date "2021.03.24"]
[Round "2.4"]
[White "Checa, Nicolas"]
[Black "Shetty, Atulya"]
[Result "1/2-1/2"]
[ECO "D15"]
[WhiteElo "2546"]
[BlackElo "2447"]
[Annotator "RC"]
[PlyCount "74"]
[EventDate "2021.03.24"]
[EventType "swiss"]
[EventCountry "ITA"]
[SourceTitle "playchess.com"]
[Source "ChessBase"]
[SourceQuality "1"]
[TimeControl "5400+30"]

1. d4 {[%emt 0:04:04]} d5 {[%emt 0:00:00]} 2. c4 {[%emt 0:00:08]} c6 {[%emt 0:00:00]} 3. Nf3 {[%emt 0:00:06]} Nf6 {[%emt 0:00:00]} 4. Nc3 {[%emt 0:00:11]} a6 {[%emt 0:00:42]} 5. Qc2 {[%emt 0:04:11]} e6 {[%emt 0:09:02]} 6. e4 {[%emt 0:00:29]} dxe4 {[%emt 0:00:23]} 7. Nxe4 {[%emt 0:00:09]} Bb4+ {[%emt 0:02:27]} 8. Bd2 {[%emt 0:09:28]} Bxd2+ {[%emt 0:01:37]} 9. Nexd2 {[%emt 0:00:13]} c5 {[%emt 0:03:14]} 10. dxc5 {[%emt 0:00:51]} Qc7 {[%emt 0:07:46]} 11. a3 {[%emt 0:05:35]} a5 {[%emt 0:02:05]} 12. Bd3 {[%emt 0:03:46]} Nbd7 {[%emt 0:05:39]} 13. c6 {[%emt 0:01:51]} Qxc6 {[%emt 0:05:14]} 14. Ne4 {[%emt 0:00:36]} Nc5 {[%emt 0:10:37]} 15. Nxc5 {[%emt 0:02:48]} Qxc5 {[%emt 0:00:08]} 16. O-O {[%emt 0:00:14]} a4 {[%emt 0:01:04]} 17. Rfe1 {[%emt 0:00:28]} O-O {[%emt 0:02:06]} 18. Re5 {[%emt 0:04:09]} Qc7 {[%emt 0:00:45]} 19. Qc3 {[%emt 0:04:48]} h6 {[%emt 0:04:19]} 20. Rae1 {[%emt 0:05:11]} Bd7 {[%emt 0:02:09]} 21. h3 {[%emt 0:00:29]} Rfd8 {[%emt 0:02:45]} 22. Nd4 {[%emt 0:05:25]} b6 {[%emt 0:08:27]} 23. c5 {[%emt 0:10:49]} Rac8 {[%emt 0:09:01]} 24. Ba6 {[%emt 0:01:46]} Ra8 {[%emt 0:02:26]} 25. Bb5 {[%emt 0:02:42]} bxc5 {[%emt 0:05:15]} 26. Rxc5 {[%emt 0:00:29]} Qb6 {[%emt 0:01:54]} 27. Bc6 {[%emt 0:12:06]} Bxc6 {[%emt 0:01:16]} 28. Nxc6 {[%emt 0:00:13]} Rd7 {[%emt 0:02:39]} 29. Rc4 {[%emt 0:02:40]} Nd5 {[%emt 0:01:01]} 30. Qc2 {[%emt 0:01:15]} Rc7 {[%emt 0:04:34]} 31. Rc1 {[%emt 0:01:23]} g6 {[%emt 0:01:33]} 32. Qd2 {[%emt 0:03:44]} Kg7 {[%emt 0:01:10]} 33. Nb4 {[%emt 0:03:38]} Rxc4 {[%emt 0:02:17]} 34. Rxc4 {[%emt 0:00:02]} Nxb4 {[%emt 0:01:38]} 35. Qc3+ {[%emt 0:00:18]} Kg8 {[%emt 0:00:43]} 36. Rxb4 {[%emt 0:02:51]} Qd6 {[%emt 0:00:31]} 37. Qf3 {[%emt 0:01:13]} Rc8 {[%emt 0:00:43]} 1/2-1/2

[Event "2nd Mix Bassano 2021"]
[Site "Bassano del Grappa"]
[Date "2021.03.24"]
[Round "2.6"]
[White "Bellahcene, Bilel"]
[Black "Tomazini, Zan"]
[Result "1-0"]
[ECO "E04"]
[WhiteElo "2517"]
[BlackElo "2416"]
[Annotator "RC"]
[PlyCount "70"]
[EventDate "2021.03.24"]
[EventType "swiss"]
[EventCountry "ITA"]
[SourceTitle "playchess.com"]
[Source "ChessBase"]
[SourceQuality "1"]
[TimeControl "5400+30"]

1. d4 {[%emt 0:05:30]} Nf6 {[%emt 0:00:00]} 2. c4 {[%emt 0:00:04]} Nc6 {[%emt 0:00:21]} 3. Nf3 {[%emt 0:00:20]} e6 {[%emt 0:00:10]} 4. g3 {[%emt 0:06:07]} d5 {[%emt 0:00:23]} 5. Bg2 {[%emt 0:01:47]} dxc4 {[%emt 0:00:19]} 6. O-O {[%emt 0:00:05]} Rb8 {[%emt 0:00:55]} 7. e3 {[%emt 0:05:40]} Be7 {[%emt 0:06:15]} 8. Nfd2 {[%emt 0:03:08]} e5 {[%emt 0:06:36]} 9. Bxc6+ {[%emt 0:03:56]} bxc6 {[%emt 0:00:05]} 10. dxe5 {[%emt 0:00:05]} Ng4 {[%emt 0:02:08]} 11. Nxc4 {[%emt 0:00:30]} Qd5 {[%emt 0:19:57]} 12. b3 {[%emt 0:01:45]} f6 {[%emt 0:11:34]} 13. Bb2 {[%emt 0:17:09]} Be6 {[%emt 0:03:15]} 14. Qc2 {[%emt 0:06:30]} Nxe5 {[%emt 0:11:40]} 15. Nxe5 {[%emt 0:03:19]} fxe5 {[%emt 0:01:30]} 16. Rd1 {[%emt 0:00:12]} Qb5 {[%emt 0:04:35]} 17. Nc3 {[%emt 0:02:31]} Qb4 {[%emt 0:06:32]} 18. Na4 {[%emt 0:01:34]} Bd6 {[%emt 0:00:49]} 19. Qxc6+ {[%emt 0:06:49]} Bd7 {[%emt 0:02:00]} 20. Qd5 {[%emt 0:00:20]} Bxa4 {[%emt 0:05:18]} 21. Qe6+ {[%emt 0:01:34]} Kf8 {[%emt 0:02:12]} 22. Qf5+ {[%emt 0:07:56]} Ke7 {[%emt 0:02:03]} 23. Bxe5 {[%emt 0:00:06]} Bc6 {[%emt 0:01:16]} 24. Qg5+ {[%emt 0:06:45]} Ke6 {[%emt 0:00:35]} 25. Bxd6 {[%emt 0:00:05]} cxd6 {[%emt 0:01:22]} 26. Rd4 {[%emt 0:00:09]} Qc5 {[%emt 0:01:57]} 27. Qg4+ {[%emt 0:01:38]} Ke7 {[%emt 0:02:19]} 28. Qxg7+ {[%emt 0:00:19]} Ke6 {[%emt 0:00:04]} 29. Rf4 {[%emt 0:03:24]} Qh5 {[%emt 0:03:33]} 30. Rf6+ {[%emt 0:00:18]} Kd5 {[%emt 0:00:08]} 31. e4+ {[%emt 0:00:04]} Kxe4 {[%emt 0:01:48]} 32. Rf4+ {[%emt 0:00:04]} Kd5 {[%emt 0:00:33]} 33. Rd4+ {[%emt 0:00:31]} Kc5 {[%emt 0:00:25]} 34. Qxa7+ {[%emt 0:00:05]} Rb6 {[%emt 0:00:50]} 35. Rc4+ {[%emt 0:00:05]} Kd5 {[%emt 0:04:03]} 1-0

[Event "2nd Mix Bassano 2021"]
[Site "Bassano del Grappa"]
[Date "2021.03.25"]
[Round "3.1"]
[White "Niemann, Hans Moke"]
[Black "Bernadskiy, Vitaliy"]
[Result "0-1"]
[ECO "A31"]
[WhiteElo "2526"]
[BlackElo "2599"]
[Annotator "ChessBase"]
[PlyCount "80"]
[EventDate "2021.03.24"]
[EventType "swiss"]
[EventCountry "ITA"]
[SourceTitle "playchess.com"]
[Source "ChessBase"]
[SourceQuality "1"]
[TimeControl "5400+30"]

1. d4 {[%emt 1:30:30]} Nf6 {[%emt 1:30:30]} 2. c4 {[%emt 0:00:30]} c5 {[%emt 0:00:30]} 3. Nf3 {[%emt 0:00:30]} cxd4 {[%emt 0:00:30]} 4. Nxd4 {[%emt 0:00:30]} b6 {[%emt 0:00:30]} 5. e4 {[%emt 0:00:30]} d6 {[%emt 0:00:30]} 6. Nc3 {[%emt 0:00:30]} Bb7 {[%emt 0:00:30]} 7. f3 {[%emt 0:00:30]} e6 {[%emt 0:00:30]} 8. Be3 {[%emt 0:00:30]} a6 {[%emt 0:00:30]} 9. g4 {[%emt 0:00:30]} Nc6 {[%emt 0:00:30]} 10. Nxc6 {[%emt 0:00:30]} Bxc6 {[%emt 0:00:30]} 11. g5 {[%emt 0:00:30]} Nd7 {[%emt 0:00:30]} 12. h4 {[%emt 0:00:30]} Be7 {[%emt 0:00:30]} 13. Qd4 {[%emt 0:00:30]} O-O {[%emt 0:00:30]} 14. O-O-O {[%emt 0:00:30]} b5 {[%emt 0:00:30]} 15. Kb1 {[%emt 0:00:30]} Ne5 {[%emt 0:00:30]} 16. f4 {[%emt 0:00:30]} b4 {[%emt 0:00:30]} 17. Ne2 {[%emt 0:00:30]} Ng4 {[%emt 0:00:30]} 18. Bh3 {[%emt 0:00:30]} e5 {[%emt 0:00:30]} 19. fxe5 {[%emt 0:00:30]} Nxe5 {[%emt 0:00:30]} 20. Rhf1 {[%emt 0:00:30]} b3 {[%emt 0:00:30]} 21. axb3 {[%emt 0:00:30]} Qb8 {[%emt 0:00:30]} 22. Qc3 {[%emt 0:00:30]} Bxe4+ {[%emt 0:00:30]} 23. Ka1 {[%emt 0:00:30]} d5 {[%emt 0:00:30]} 24. Bf4 {[%emt 0:00:30]} Qb5 {[%emt 0:00:30]} 25. Nc1 {[%emt 0:00:30]} Nc6 {[%emt 0:00:30]} 26. Na2 {[%emt 0:00:30]} Nb4 {[%emt 0:00:30]} 27. Bc7 {[%emt 0:00:30]} Nc2+ {[%emt 0:00:30]} 28. Kb1 {[%emt 0:00:30]} Qb7 {[%emt 0:00:30]} 29. Bf5 {[%emt 0:00:30]} Ne3+ {[%emt 0:00:30]} 30. Bxe4 {[%emt 0:00:30]} Nxd1 {[%emt 0:00:30]} 31. Rxd1 {[%emt 0:00:30]} dxe4 {[%emt 0:00:30]} 32. Ba5 {[%emt 0:00:30]} Rab8 {[%emt 0:00:30]} 33. Kc2 {[%emt 0:00:30]} Rfe8 {[%emt 0:00:30]} 34. Nc1 {[%emt 0:00:30]} e3 {[%emt 0:00:30]} 35. Ne2 {[%emt 0:00:30]} Qe4+ {[%emt 0:00:30]} 36. Qd3 {[%emt 0:00:30]} Qxh4 {[%emt 0:00:30]} 37. Rg1 {[%emt 0:00:30]} Bxg5 {[%emt 0:00:30]} 38. Bc3 {[%emt 0:00:30]} Bf6 {[%emt 0:00:30]} 39. c5 {[%emt 0:00:30]} Rbd8 {[%emt 0:00:30]} 40. Qc4 {[%emt 0:00:30]} Qf2 {[%emt 0:00:30]} 0-1

[Event "2nd Mix Bassano 2021"]
[Site "Bassano del Grappa"]
[Date "2021.03.25"]
[Round "3.3"]
[White "Checa, Nicolas"]
[Black "Sonis, Francesco"]
[Result "0-1"]
[ECO "E15"]
[WhiteElo "2546"]
[BlackElo "2477"]
[Annotator "ChessBase"]
[PlyCount "94"]
[EventDate "2021.03.24"]
[EventType "swiss"]
[EventCountry "ITA"]
[SourceTitle "playchess.com"]
[Source "ChessBase"]
[SourceQuality "1"]
[TimeControl "5400+30"]

1. d4 {[%emt 0:06:30]} Nf6 {[%emt 0:00:00]} 2. c4 {[%emt 0:00:17]} e6 {[%emt 0:00:00]} 3. Nf3 {[%emt 0:00:07]} b6 {[%emt 0:00:00]} 4. g3 {[%emt 0:00:09]} Ba6 {[%emt 0:00:00]} 5. Qc2 {[%emt 0:02:05]} d5 {[%emt 0:01:46]} 6. cxd5 {[%emt 0:04:10]} exd5 {[%emt 0:00:57]} 7. Bg2 {[%emt 0:00:15]} Be7 {[%emt 0:04:45]} 8. O-O {[%emt 0:02:14]} O-O {[%emt 0:00:04]} 9. Nc3 {[%emt 0:00:12]} Bb7 {[%emt 0:00:32]} 10. Ne5 {[%emt 0:07:03]} Na6 {[%emt 0:02:13]} 11. Bf4 {[%emt 0:02:54]} c5 {[%emt 0:05:29]} 12. Rad1 {[%emt 0:06:27]} Qc8 {[%emt 0:20:51]} 13. dxc5 {[%emt 0:10:05]} bxc5 {[%emt 0:00:42]} 14. a3 {[%emt 0:02:13]} Rd8 {[%emt 0:06:41]} 15. Bg5 {[%emt 0:16:28]} Nc7 {[%emt 0:15:18]} 16. Qb3 {[%emt 0:01:25]} Rb8 {[%emt 0:00:36]} 17. Qa2 {[%emt 0:00:07]} Qe6 {[%emt 0:01:00]} 18. Bxf6 {[%emt 0:08:24]} gxf6 {[%emt 0:01:38]} 19. Nd3 {[%emt 0:07:58]} d4 {[%emt 0:00:34]} 20. Qxe6 {[%emt 0:00:53]} fxe6 {[%emt 0:01:13]} 21. Na4 {[%emt 0:01:10]} c4 {[%emt 0:04:55]} 22. Bxb7 {[%emt 0:00:48]} Rxb7 {[%emt 0:00:05]} 23. Ne1 {[%emt 0:00:19]} Nb5 {[%emt 0:01:44]} 24. Nf3 {[%emt 0:03:46]} Rc7 {[%emt 0:01:03]} 25. e3 {[%emt 0:01:48]} e5 {[%emt 0:00:04]} 26. exd4 {[%emt 0:00:18]} exd4 {[%emt 0:00:04]} 27. Rfe1 {[%emt 0:00:41]} Kf7 {[%emt 0:00:47]} 28. Re2 {[%emt 0:03:12]} Rd6 {[%emt 0:01:37]} 29. Re4 {[%emt 0:02:52]} Ra6 {[%emt 0:01:28]} 30. Nxd4 {[%emt 0:00:08]} Nxd4 {[%emt 0:00:10]} 31. Nc3 {[%emt 0:03:06]} Nf3+ {[%emt 0:02:21]} 32. Kg2 {[%emt 0:00:17]} Ne5 {[%emt 0:01:53]} 33. Rh4 {[%emt 0:00:41]} Kg7 {[%emt 0:01:08]} 34. Re4 {[%emt 0:02:18]} Rb7 {[%emt 0:01:32]} 35. Rd2 {[%emt 0:00:14]} Rd6 {[%emt 0:00:30]} 36. Rde2 {[%emt 0:00:18]} Rdd7 {[%emt 0:00:19]} 37. Na4 {[%emt 0:01:07]} Rbc7 {[%emt 0:01:15]} 38. Rc2 {[%emt 0:00:52]} Rd3 {[%emt 0:02:06]} 39. f4 {[%emt 0:01:43]} Ng4 {[%emt 0:00:18]} 40. Rce2 {[%emt 0:00:08]} Kf7 {[%emt 0:01:26]} 41. h3 {[%emt 0:00:19]} f5 {[%emt 0:01:16]} 42. Re6 {[%emt 0:00:24]} Nf6 {[%emt 0:00:08]} 43. R6e5 {[%emt 0:00:21]} Rd5 {[%emt 0:00:32]} 44. Nc3 {[%emt 0:00:05]} Rxe5 {[%emt 0:00:51]} 45. fxe5 {[%emt 0:00:15]} Ne4 {[%emt 0:00:08]} 46. Nxe4 {[%emt 0:00:04]} fxe4 {[%emt 0:00:03]} 47. Rxe4 {[%emt 0:00:10]} Ke6 {[%emt 0:00:04]} 0-1

[Event "2nd Mix Bassano 2021"]
[Site "Bassano del Grappa"]
[Date "2021.03.25"]
[Round "3.5"]
[White "Formento, Paolo"]
[Black "Schreiner, Peter"]
[Result "1/2-1/2"]
[ECO "A25"]
[WhiteElo "2329"]
[BlackElo "2445"]
[Annotator "NA"]
[PlyCount "58"]
[EventDate "2021.03.24"]
[EventType "swiss"]
[EventCountry "ITA"]
[SourceTitle "playchess.com"]
[Source "ChessBase"]
[SourceQuality "1"]
[TimeControl "5400+30"]

1. c4 {[%emt 0:12:38]} e5 {[%emt 0:01:25]} 2. Nc3 {[%emt 0:00:10]} Nc6 {[%emt 0:00:20]} 3. g3 {[%emt 0:00:29]} f5 {[%emt 0:00:28]} 4. Bg2 {[%emt 0:01:01]} Nf6 {[%emt 0:00:19]} 5. d3 {[%emt 0:01:40]} Bb4 {[%emt 0:00:35]} 6. Bd2 {[%emt 0:05:30]} O-O {[%emt 0:03:03]} 7. a3 {[%emt 0:02:28]} Bxc3 {[%emt 0:03:32]} 8. Bxc3 {[%emt 0:00:02]} d6 {[%emt 0:09:20]} 9. b4 {[%emt 0:03:30]} Qe8 {[%emt 0:14:22]} 10. Nf3 {[%emt 0:19:59]} h6 {[%emt 0:16:35]} 11. Nd2 $11 {[%emt 0:12:47]} Nd8 {[%emt 0:12:58]} 12. e3 {[%emt 0:04:47]} f4 {[%emt 0:10:17]} 13. O-O {[%emt 0:07:57]} Bg4 {[%emt 0:07:51]} 14. Qc2 {[%emt 0:00:23]} Qh5 {[%emt 0:03:07]} 15. exf4 {[%emt 0:01:19]} exf4 {[%emt 0:00:33]} 16. f3 {[%emt 0:03:18]} Bd7 {[%emt 0:02:57]} 17. g4 {[%emt 0:05:50]} Qg5 {[%emt 0:02:00]} 18. Rae1 {[%emt 0:01:23]} Nf7 {[%emt 0:03:23]} 19. Qb2 {[%emt 0:07:15]} Rae8 {[%emt 0:02:17]} 20. Bxf6 {[%emt 0:02:09]} Qxf6 {[%emt 0:00:07]} 21. Qxf6 {[%emt 0:00:06]} gxf6 {[%emt 0:00:04]} 22. Ne4 {[%emt 0:05:01]} Ne5 {[%emt 0:01:44]} 23. Rd1 {[%emt 0:00:15]} f5 {[%emt 0:00:36]} 24. gxf5 {[%emt 0:00:05]} Bxf5 {[%emt 0:00:12]} 25. Rfe1 {[%emt 0:01:04]} Kf7 {[%emt 0:02:41]} 26. Kf2 {[%emt 0:00:11]} Rg8 {[%emt 0:00:38]} 27. Bf1 {[%emt 0:00:39]} Ng6 {[%emt 0:01:01]} 28. Nc3 {[%emt 0:01:08]} c6 {[%emt 0:00:27]} 29. d4 {[%emt 0:00:19]} Nh4 {[%emt 0:00:46]} 1/2-1/2

[Event "2nd Mix Bassano 2021"]
[Site "Bassano del Grappa"]
[Date "2021.03.25"]
[Round "3.7"]
[White "Bjerre, Jonas Buhl"]
[Black "Deuer, Marius"]
[Result "1-0"]
[ECO "E15"]
[WhiteElo "2549"]
[BlackElo "2231"]
[Annotator "ChessBase"]
[PlyCount "87"]
[EventDate "2021.03.24"]
[EventType "swiss"]
[EventCountry "ITA"]
[SourceTitle "playchess.com"]
[Source "ChessBase"]
[SourceQuality "1"]
[TimeControl "5400+30"]

1. d4 {[%emt 0:00:01]} Nf6 {[%emt 0:00:00]} 2. c4 {[%emt 0:00:07]} e6 {[%emt 0:00:00]} 3. Nf3 {[%emt 0:00:06]} b6 {[%emt 0:00:00]} 4. g3 {[%emt 0:00:26]} Ba6 {[%emt 0:00:00]} 5. b3 {[%emt 0:00:15]} Bb4+ {[%emt 0:00:00]} 6. Bd2 {[%emt 0:00:07]} Be7 {[%emt 0:00:04]} 7. Nc3 {[%emt 0:00:16]} d5 {[%emt 0:00:19]} 8. cxd5 {[%emt 0:01:20]} exd5 {[%emt 0:00:17]} 9. Bg2 {[%emt 0:00:16]} O-O {[%emt 0:00:14]} 10. O-O {[%emt 0:00:05]} Nbd7 {[%emt 0:02:28]} 11. Rc1 {[%emt 0:02:08]} Bb7 {[%emt 0:07:35]} 12. Ne5 {[%emt 0:03:32]} a6 {[%emt 0:10:28]} 13. Bf4 {[%emt 0:04:45]} Re8 {[%emt 0:00:32]} 14. Na4 {[%emt 0:11:54]} Nxe5 {[%emt 0:12:57]} 15. dxe5 {[%emt 0:07:24]} Nh5 {[%emt 0:06:49]} 16. Be3 {[%emt 0:02:25]} g6 {[%emt 0:01:08]} 17. Qc2 {[%emt 0:03:29]} b5 {[%emt 0:13:10]} 18. Qxc7 {[%emt 0:04:19]} Rb8 {[%emt 0:06:47]} 19. Qxd8 {[%emt 0:05:04]} Rexd8 {[%emt 0:03:02]} 20. Nc5 {[%emt 0:02:37]} Bxc5 {[%emt 0:01:14]} 21. Bxc5 {[%emt 0:01:40]} Ng7 {[%emt 0:00:13]} 22. e3 {[%emt 0:03:01]} Ne6 {[%emt 0:01:39]} 23. Be7 {[%emt 0:02:04]} Re8 {[%emt 0:01:35]} 24. Bd6 {[%emt 0:00:37]} Rbc8 {[%emt 0:00:48]} 25. f4 {[%emt 0:02:12]} h5 {[%emt 0:06:34]} 26. h3 {[%emt 0:01:12]} Red8 {[%emt 0:05:25]} 27. g4 {[%emt 0:07:24]} hxg4 {[%emt 0:03:49]} 28. hxg4 {[%emt 0:00:03]} f5 {[%emt 0:00:27]} 29. gxf5 {[%emt 0:00:54]} gxf5 {[%emt 0:00:02]} 30. Kf2 {[%emt 0:02:25]} Kf7 {[%emt 0:01:52]} 31. Bf3 {[%emt 0:03:05]} Ng7 {[%emt 0:01:23]} 32. Rh1 {[%emt 0:02:23]} Ba8 {[%emt 0:04:29]} 33. Rxc8 {[%emt 0:02:32]} Rxc8 {[%emt 0:00:03]} 34. Rh6 {[%emt 0:00:28]} Bc6 {[%emt 0:06:50]} 35. Rf6+ {[%emt 0:02:04]} Kg8 {[%emt 0:00:04]} 36. e6 {[%emt 0:01:57]} Ne8 {[%emt 0:01:24]} 37. Rf8+ {[%emt 0:00:55]} Kg7 {[%emt 0:00:03]} 38. Rf7+ {[%emt 0:00:15]} Kg6 {[%emt 0:00:10]} 39. Be5 {[%emt 0:01:01]} Ra8 {[%emt 0:04:00]} 40. Kg3 {[%emt 0:01:27]} Rd8 {[%emt 0:00:52]} 41. Rf8 {[%emt 0:00:43]} Ra8 {[%emt 0:00:35]} 42. Rg8+ {[%emt 0:00:17]} Kh7 {[%emt 0:00:06]} 43. Rh8+ {[%emt 0:00:05]} Kg6 {[%emt 0:00:08]} 44. Bh5# {[%emt 0:00:04]} 1-0

[Event "2nd Mix Bassano 2021"]
[Site "Bassano del Grappa"]
[Date "2021.03.25"]
[Round "3.9"]
[White "Janzelj, Tim"]
[Black "Pasini, Nicolo"]
[Result "1-0"]
[ECO "B31"]
[WhiteElo "2468"]
[BlackElo "2220"]
[Annotator "RC"]
[PlyCount "71"]
[EventDate "2021.03.24"]
[EventType "swiss"]
[EventCountry "ITA"]
[SourceTitle "playchess.com"]
[Source "ChessBase"]
[SourceQuality "1"]
[TimeControl "5400+30"]

1. e4 {[%emt 0:02:14]} c5 {[%emt 0:00:00]} 2. Nf3 {[%emt 0:00:10]} Nc6 {[%emt 0:00:00]} 3. Bb5 {[%emt 0:00:12]} g6 {[%emt 0:00:00]} 4. O-O {[%emt 0:00:09]} Bg7 {[%emt 0:00:00]} 5. c3 {[%emt 0:00:31]} Nf6 {[%emt 0:00:01]} 6. Re1 {[%emt 0:00:12]} O-O {[%emt 0:00:07]} 7. d4 {[%emt 0:00:05]} d5 {[%emt 0:00:05]} 8. e5 {[%emt 0:00:05]} Ne4 {[%emt 0:00:06]} 9. Be3 {[%emt 0:00:04]} Qb6 {[%emt 0:05:51]} 10. Bxc6 {[%emt 0:00:31]} bxc6 {[%emt 0:01:18]} 11. Qc1 {[%emt 0:00:16]} Rb8 {[%emt 0:03:34]} 12. b3 {[%emt 0:00:13]} Qa5 {[%emt 0:03:35]} 13. dxc5 {[%emt 0:32:46]} Rxb3 {[%emt 0:04:15]} 14. axb3 {[%emt 0:00:07]} Qxa1 {[%emt 0:00:05]} 15. b4 {[%emt 0:02:38]} Bd7 {[%emt 0:24:46]} 16. Nd4 {[%emt 0:04:39]} Bxe5 {[%emt 0:23:32]} 17. f3 {[%emt 0:00:11]} Nf6 {[%emt 0:01:25]} 18. Nc2 {[%emt 0:00:12]} Qa2 {[%emt 0:00:24]} 19. Bg5 {[%emt 0:12:33]} Bf5 {[%emt 0:08:45]} 20. Rxe5 {[%emt 0:03:07]} Qxc2 {[%emt 0:01:42]} 21. Qxc2 {[%emt 0:00:55]} Bxc2 {[%emt 0:00:07]} 22. Na3 {[%emt 0:07:52]} Nd7 {[%emt 0:00:55]} 23. Rxe7 {[%emt 0:00:07]} Bf5 {[%emt 0:00:05]} 24. g4 {[%emt 0:00:14]} Be6 {[%emt 0:00:10]} 25. Nc2 {[%emt 0:00:09]} a5 {[%emt 0:06:41]} 26. Nd4 {[%emt 0:00:11]} a4 {[%emt 0:01:28]} 27. Nxe6 {[%emt 0:00:58]} fxe6 {[%emt 0:00:14]} 28. Rxd7 {[%emt 0:00:11]} Ra8 {[%emt 0:00:32]} 29. Rd8+ {[%emt 0:02:49]} Rxd8 {[%emt 0:00:07]} 30. Bxd8 {[%emt 0:00:02]} a3 {[%emt 0:00:56]} 31. Bf6 {[%emt 0:00:15]} Kf7 {[%emt 0:00:32]} 32. Be5 {[%emt 0:00:11]} a2 {[%emt 0:00:30]} 33. c4 {[%emt 0:00:06]} dxc4 {[%emt 0:00:08]} 34. Kf2 {[%emt 0:00:24]} c3 {[%emt 0:00:06]} 35. Bxc3 {[%emt 0:00:04]} e5 {[%emt 0:00:06]} 36. Ke3 {[%emt 0:00:21]} 1-0

[Event "2nd Mix Bassano 2021"]
[Site "Bassano del Grappa"]
[Date "2021.03.25"]
[Round "4.10"]
[White "Kuhn, Clement"]
[Black "Orfini, Nicolo`"]
[Result "1/2-1/2"]
[ECO "A34"]
[WhiteElo "2278"]
[BlackElo "2214"]
[Annotator "ChessBase"]
[PlyCount "103"]
[EventDate "2021.03.24"]
[EventType "swiss"]
[EventCountry "ITA"]
[SourceTitle "playchess.com"]
[Source "ChessBase"]
[SourceQuality "1"]
[TimeControl "5400+30"]

1. Nf3 {[%emt 0:00:59]} Nf6 {[%emt 0:00:41]} 2. c4 {[%emt 0:00:16]} b6 {[%emt 0:00:58]} 3. Nc3 {[%emt 0:00:06]} Bb7 {[%emt 0:00:25]} 4. e3 {[%emt 0:00:29]} c5 {[%emt 0:02:07]} 5. Be2 {[%emt 0:00:28]} g6 {[%emt 0:00:36]} 6. O-O {[%emt 0:01:30]} Bg7 {[%emt 0:00:03]} 7. d4 {[%emt 0:03:12]} cxd4 {[%emt 0:00:32]} 8. exd4 {[%emt 0:00:15]} d5 {[%emt 0:04:06]} 9. Ne5 {[%emt 0:12:26]} O-O {[%emt 0:16:58]} 10. Bf3 {[%emt 0:02:47]} a6 {[%emt 0:12:28]} 11. Be3 {[%emt 0:10:33]} Ra7 {[%emt 0:06:23]} 12. b3 {[%emt 0:06:00]} e6 {[%emt 0:05:32]} 13. Qc2 {[%emt 0:04:29]} Nc6 {[%emt 0:09:44]} 14. Nxc6 {[%emt 0:03:47]} Bxc6 {[%emt 0:00:07]} 15. b4 {[%emt 0:01:40]} Qa8 {[%emt 0:04:56]} 16. c5 {[%emt 0:02:31]} bxc5 {[%emt 0:01:28]} 17. bxc5 {[%emt 0:00:48]} Ne4 {[%emt 0:02:10]} 18. Na4 {[%emt 0:04:32]} f5 {[%emt 0:00:42]} 19. Nb6 {[%emt 0:03:49]} Qe8 {[%emt 0:01:02]} 20. Bxe4 {[%emt 0:01:18]} fxe4 {[%emt 0:04:43]} 21. a4 {[%emt 0:03:11]} g5 {[%emt 0:03:46]} 22. Qd1 {[%emt 0:03:02]} Qg6 {[%emt 0:00:37]} 23. Qg4 {[%emt 0:00:55]} Qf5 {[%emt 0:05:06]} 24. Qg3 {[%emt 0:01:29]} e5 {[%emt 0:00:53]} 25. Rad1 {[%emt 0:00:40]} h6 {[%emt 0:00:58]} 26. h3 {[%emt 0:03:50]} Raf7 {[%emt 0:02:31]} 27. dxe5 {[%emt 0:03:33]} Bxe5 {[%emt 0:00:23]} 28. Qg4 {[%emt 0:00:03]} Qg6 {[%emt 0:00:50]} 29. Nxd5 {[%emt 0:02:36]} Bxa4 {[%emt 0:00:46]} 30. Rb1 {[%emt 0:00:29]} Bd7 {[%emt 0:00:42]} 31. Qd1 {[%emt 0:00:30]} Bb5 {[%emt 0:01:21]} 32. Re1 {[%emt 0:00:31]} Kh7 {[%emt 0:01:40]} 33. Qg4 {[%emt 0:02:41]} h5 {[%emt 0:02:39]} 34. Qxg5 {[%emt 0:03:59]} Qxg5 {[%emt 0:00:01]} 35. Bxg5 {[%emt 0:00:09]} Rxf2 {[%emt 0:00:05]} 36. Be7 {[%emt 0:00:51]} R8f7 {[%emt 0:00:41]} 37. Bd6 {[%emt 0:00:34]} Bd4 {[%emt 0:00:17]} 38. Kh2 {[%emt 0:01:07]} Bd3 {[%emt 0:00:58]} 39. Rb4 {[%emt 0:02:39]} Bb2 {[%emt 0:02:03]} 40. Bg3 {[%emt 0:00:50]} Ba3 {[%emt 0:02:22]} 41. Bxf2 {[%emt 0:01:54]} Bxb4 {[%emt 0:00:07]} 42. Nxb4 {[%emt 0:00:03]} Rxf2 {[%emt 0:00:06]} 43. c6 {[%emt 0:03:47]} Rf8 {[%emt 0:00:51]} 44. c7 {[%emt 0:00:51]} a5 {[%emt 0:02:54]} 45. Nd5 {[%emt 0:00:59]} Ba6 {[%emt 0:01:53]} 46. Rxe4 {[%emt 0:00:25]} Bb7 {[%emt 0:00:13]} 47. Rc4 {[%emt 0:00:32]} a4 {[%emt 0:01:25]} 48. Rc2 {[%emt 0:02:54]} a3 {[%emt 0:00:51]} 49. Nb6 {[%emt 0:00:35]} h4 {[%emt 0:00:31]} 50. Nc4 {[%emt 0:00:50]} Ra8 {[%emt 0:00:56]} 51. Nxa3 {[%emt 0:03:26]} Rxa3 {[%emt 0:00:12]} 52. c8=N {[%emt 0:00:00]} 1/2-1/2

[Event "2nd Mix Bassano 2021"]
[Site "Bassano del Grappa"]
[Date "2021.03.26"]
[Round "6.9"]
[White "Formento, Paolo"]
[Black "Orfini, Nicolo`"]
[Result "1-0"]
[ECO "A26"]
[WhiteElo "2329"]
[BlackElo "2214"]
[Annotator "ChessBase"]
[PlyCount "47"]
[EventDate "2021.03.24"]
[EventType "swiss"]
[EventCountry "ITA"]
[SourceTitle "playchess.com"]
[Source "ChessBase"]
[SourceQuality "1"]
[TimeControl "5400+30"]

1. c4 {[%emt 0:09:48]} d6 {[%emt 0:00:04]} 2. Nc3 {[%emt 0:01:21]} Nf6 {[%emt 0:00:09]} 3. e4 {[%emt 0:01:07]} e5 {[%emt 0:02:16]} 4. Nge2 {[%emt 0:00:21]} g6 {[%emt 0:00:54]} 5. g3 {[%emt 0:00:43]} Bg7 {[%emt 0:00:05]} 6. Bg2 {[%emt 0:00:03]} Nc6 {[%emt 0:01:47]} 7. d3 {[%emt 0:00:29]} Bd7 {[%emt 0:01:02]} 8. O-O {[%emt 0:00:49]} Qc8 {[%emt 0:01:51]} 9. Nd5 {[%emt 0:03:37]} Nxd5 {[%emt 0:02:35]} 10. cxd5 {[%emt 0:00:08]} Nd4 {[%emt 0:04:01]} 11. Nxd4 {[%emt 0:02:05]} exd4 {[%emt 0:00:17]} 12. Bf4 {[%emt 0:00:49]} O-O {[%emt 0:01:27]} 13. Rc1 {[%emt 0:03:46]} Be5 {[%emt 0:00:04]} 14. Bh6 {[%emt 0:01:18]} Re8 {[%emt 0:00:44]} 15. f4 {[%emt 0:01:50]} Bh8 {[%emt 0:00:39]} 16. f5 {[%emt 0:00:24]} c5 {[%emt 0:05:01]} 17. dxc6 {[%emt 0:37:59]} Bxc6 {[%emt 0:01:16]} 18. Bh3 {[%emt 0:06:37]} Qc7 {[%emt 0:02:58]} 19. b4 {[%emt 0:01:32]} a6 {[%emt 0:01:34]} 20. a4 {[%emt 0:00:09]} Qe7 {[%emt 0:02:24]} 21. Qb3 {[%emt 0:00:54]} Rad8 {[%emt 0:06:00]} 22. fxg6 {[%emt 0:05:38]} hxg6 {[%emt 0:00:54]} 23. Bg5 {[%emt 0:00:35]} Bxa4 {[%emt 0:02:47]} 24. Qa2 {[%emt 0:00:07]} 1-0